fUST/lending_fUST_20250105
["ID","MTS","AMOUNT","RATE_DAILY","PERIOD"]
[347653492,1736023850475,-500.4513721,0.00019452,3]
[347653493,1736023850485,-500.0,0.00019452,3]
[347653494,1736023850494,-500.0,0.00019452,3]
[347653495,1736023850503,-1338.26,0.00019452,3]
[347653496,1736023850512,-500.0,0.00019452,3]
[347653497,1736023850522,-2480.38,0.00019452,3]
[347653498,1736023850531,-500.0,0.00019452,3]
[347653499,1736023850540,-500.0,0.00019452,3]
[347653500,1736023850550,-500.0,0.00019452,3]
[347653501,1736023850559,-500.0,0.00019452,3]
[347653502,1736023850568,-500.0,0.00019452,3]
[347653503,1736023850578,-500.0,0.00019452,3]
[347653504,1736023850587,-500.0,0.00019452,3]
[347653505,1736023850597,-1894.32,0.00019452,3]
[347653506,1736023850607,-500.0,0.00019452,3]
[347653507,1736023850616,-500.0,0.00019452,3]
[347653508,1736023850626,-1017.53,0.00019452,3]
[347653509,1736023850635,-1000.0,0.00019452,3]
[347653510,1736023850646,-521.86,0.00019452,3]
[347653511,1736023850655,-566.13,0.00019452,3]
[347653512,1736023850665,-500.0,0.00019452,3]
[347653513,1736023850675,-509.81683209,0.00019452,3]
[347653514,1736023850684,-500.0,0.00019452,3]
[347653515,1736023850694,-1015.01,0.00019452,3]
[347653516,1736023850703,-500.0,0.00019452,3]
[347653517,1736023850714,-500.0,0.00019452,3]
[347653518,1736023850723,-379.67317922,0.00019452,3]
[347653519,1736023850734,-500.0,0.00019452,3]
[347653520,1736023850744,-500.0,0.00019452,3]
[347653521,1736023850754,-3681.42,0.00019452,3]
[347653522,1736023850763,-500.0,0.00019452,3]
[347653523,1736023850775,-1319.91,0.00019452,3]
[347653524,1736023850785,-641.33,0.00019452,3]
[347653525,1736023850795,-502.38232748,0.00019452,3]
[347653526,1736023850804,-500.0,0.00019452,3]
[347653527,1736023850813,-2237.02,0.00019452,3]
[347653528,1736023850822,-1081.44,0.00019452,3]
[347653529,1736023850831,-500.0,0.00019452,3]
[347653530,1736023850840,-500.0,0.00019452,3]
[347653531,1736023850849,-503.06411982,0.00019452,3]
[347653532,1736023850859,-1442.78,0.00019452,3]
[347653533,1736023850868,-500.0,0.00019452,3]
[347653534,1736023850877,-500.0,0.00019452,3]
[347653535,1736023850887,-500.0,0.00019452,2]
[347653536,1736023850897,-500.0,0.00019452,3]
[347653537,1736023850907,-500.0,0.00019452,3]
[347653538,1736023850916,-525.58,0.00019452,3]
[347653539,1736023850926,-500.0,0.00019452,3]
[347653540,1736023850935,-884.38,0.00019452,3]
[347653541,1736023850944,-503.04843903,0.00019452,3]
[347653542,1736023850953,-500.0,0.00019452,3]
[347653543,1736023850962,-500.0,0.00019452,3]
[347653544,1736023850972,-500.0,0.00019452,3]
[347653545,1736023850981,-500.0,0.00019452,3]
[347653546,1736023850990,-500.0,0.00019452,3]
[347653547,1736023850999,-500.0,0.00019452,3]
[347653548,1736023851008,-500.0,0.00019452,3]
[347653549,1736023851018,-866.62,0.00019452,3]
[347653550,1736023851027,-1983.09,0.00019452,3]
[347653551,1736023851036,-727.09,0.00019452,3]
[347653552,1736023851046,-214.72900225,0.00019452,3]
[347653553,1736023851055,-500.0,0.00019452,3]
[347653554,1736023851064,-500.0,0.00019452,3]
[347653555,1736023851073,-500.0,0.00019452,3]
[347653556,1736023851083,-1115.93,0.00019452,3]
[347653557,1736023851096,-1068.51,0.00019452,3]
[347653558,1736023851107,-503.77095047,0.00019452,3]
[347653559,1736023851118,-500.0,0.00019452,3]
[347653560,1736023851129,-500.0,0.00019452,3]
[347653561,1736023851139,-485.62157746,0.00019452,3]
[347653562,1736023851148,-774.65,0.00019452,2]
[347653563,1736023851158,-500.0,0.00019452,3]
[347653564,1736023851167,-617.62,0.00019452,3]
[347653565,1736023851176,-3849.69,0.00019452,3]
[347653566,1736023851187,-938.67,0.00019452,3]
[347653567,1736023851197,-500.0,0.00019452,3]
[347653568,1736023851209,-500.0,0.00019452,3]
[347653569,1736023851219,-500.0,0.00019452,3]
[347653570,1736023851228,-500.0,0.00019452,3]
[347653571,1736023851237,-500.0,0.00019452,3]
[347653572,1736023851246,-500.0,0.00019452,3]
[347653573,1736023851256,-500.0,0.00019452,3]
[347653574,1736023851265,-500.0,0.00019452,3]
[347653575,1736023851274,-500.0,0.00019452,3]
[347653576,1736023851284,-268.74473366,0.00019452,3]
[347653577,1736023851293,-500.0,0.00019452,3]
[347653578,1736023851302,-500.0,0.00019452,3]
[347653579,1736023851311,-4194.03,0.00019452,3]
[347653580,1736023851325,-210.65145455,0.00019452,3]
[347653581,1736023851342,-4340.25,0.00019452,3]
[347653582,1736023851358,-500.0,0.00019452,3]
[347653583,1736023851373,-57149.96,0.00019452,3]
[347653584,1736023851388,-500.0,0.00019452,3]
[347653585,1736023851406,-500.0,0.00019452,3]
[347653586,1736023851422,-500.0,0.00019452,3]
[347653587,1736023851437,-500.0,0.00019452,3]
[347653588,1736023851454,-500.0,0.00019452,3]
[347653589,1736023851468,-500.0,0.00019452,3]
[347653590,1736023851484,-593.41,0.00019452,3]
[347653591,1736023851500,-500.0,0.00019452,3]
[347653592,1736023851513,-500.0,0.00019452,3]
[347653593,1736023851527,-545.78,0.00019452,3]
[347653594,1736023851541,-500.0,0.00019452,3]
[347653595,1736023851555,-571.59,0.00019452,3]
[347653596,1736023851570,-500.0,0.00019452,3]
[347653597,1736023851585,-11234.93,0.00019452,3]
[347653598,1736023851600,-1702.22,0.00019452,3]
[347653599,1736023851611,-500.0,0.00019452,3]
[347653600,1736023851622,-500.0,0.00019452,3]
[347653601,1736023851641,-500.0,0.00019452,3]
[347653602,1736023851655,-500.0,0.00019452,3]
[347653603,1736023851669,-527.37,0.00019452,3]
[347653604,1736023851683,-500.0,0.00019452,3]
[347653605,1736023851697,-2186.23,0.00019452,3]
[347653606,1736023851708,-6067.28,0.00019452,3]
[347653607,1736023851721,-500.0,0.00019452,3]
[347653608,1736023851734,-500.0,0.00019452,3]
[347653609,1736023851748,-1991.61,0.00019452,3]
[347653610,1736023851761,-500.0,0.00019452,3]
[347653611,1736023851774,-500.0,0.00019452,3]
[347653612,1736023851786,-500.0,0.00019452,3]
[347653613,1736023851798,-500.0,0.00019452,3]
[347653614,1736023851811,-2615.77,0.00019452,3]
[347653615,1736023851824,-1350.66,0.00019452,3]
[347653616,1736023851836,-500.0,0.00019452,3]
[347653617,1736023851850,-500.0,0.00019452,3]
[347653618,1736023851863,-500.0,0.00019452,3]
[347653619,1736023851877,-500.0,0.00019452,3]
[347653620,1736023851889,-500.0,0.00019452,3]
[347653621,1736023851902,-500.0,0.00019452,3]
[347653622,1736023851914,-665.77,0.00019452,3]
[347653623,1736023851926,-500.0,0.00019452,3]
[347653624,1736023851938,-2823.74,0.00019452,3]
[347653625,1736023851951,-969.26,0.00019452,3]
[347653626,1736023851963,-500.0,0.00019452,3]
[347653627,1736023851976,-500.0,0.00019452,3]
[347653628,1736023851990,-579.12510319,0.00019452,3]
[347653629,1736023852004,-2507.16,0.00019452,3]
[347653630,1736023852017,-500.0,0.00019452,3]
[347653631,1736023852030,-500.0,0.00019452,3]
[347653632,1736023852043,-500.0,0.00019452,3]
[347653633,1736023852056,-500.0,0.00019452,3]
[347653634,1736023852068,-500.0,0.00019452,3]
[347653635,1736023852080,-1055.8,0.00019452,3]
[347653636,1736023852096,-501.18025801,0.00019452,3]
[347653637,1736023852108,-600.0,0.00019462,2]
[347653638,1736023852121,-418.5,0.00019473,2]
[347653639,1736023852135,-1002.104133,0.000195,2]
[347653640,1736023852147,-5619.92589787,0.00019521,2]
[347653641,1736023852160,-575.78737246,0.00019652,2]
[347653642,1736023852174,-823.0,0.0001966,2]
[347653643,1736023852188,-2000.0,0.000197,2]
[347653644,1736023852201,-2000.0,0.000197,2]
[347653645,1736023852213,-2000.0,0.000197,2]
[347653646,1736023852225,-500.0,0.00019721,2]
[347653647,1736023852237,-1000.0,0.00019721,2]
[347653648,1736023852249,-150.06,0.00019725,2]
[347653649,1736023852261,-160.0,0.00019725,2]
[347653650,1736023852274,-504.48160459,0.00019726,3]
[347653651,1736023852285,-500.0,0.00019726,3]
[347653652,1736023852298,-500.0,0.00019726,3]
[347653653,1736023852309,-500.0,0.00019726,3]
[347653654,1736023852322,-500.0,0.00019726,3]
[347653655,1736023852334,-500.0,0.00019726,3]
[347653656,1736023852346,-500.0,0.00019726,3]
[347653657,1736023852358,-511.71731968,0.00019726,3]
[347653658,1736023852370,-500.0,0.00019726,3]
[347653659,1736023852383,-502.95937257,0.00019726,3]
[347653660,1736023852396,-500.0,0.00019726,3]
[347653661,1736023852408,-500.0,0.00019726,3]
[347653662,1736023852420,-500.0,0.00019726,3]
[347653663,1736023852432,-500.0,0.00019726,3]
[347653664,1736023852444,-500.0,0.00019726,3]
[347653665,1736023852457,-500.0,0.00019726,3]
[347653666,1736023852469,-500.0,0.00019726,3]
[347653667,1736023852482,-506.69220242,0.00019726,3]
[347653668,1736023852495,-500.0,0.00019726,3]
[347653669,1736023852507,-601.15,0.00019726,3]
[347653670,1736023852519,-351.84813095,0.00019726,3]
[347653673,1736023853610,-151.0,0.0001745,2]
[347653674,1736023853622,-151.0,0.0001745,2]
[347653675,1736023853631,-394.0,0.00017451,2]
[347653676,1736023853641,-151.534905,0.00017699,2]
[347653677,1736023853650,-151.0,0.00017699,2]
[347653678,1736023853660,-106.90472706,0.00017699,2]
[347653679,1736023853673,-44.09527294,0.00017699,2]
[347653680,1736023853683,-151.0,0.000177,2]
[347653681,1736023853692,-222.071568,0.000177,2]
[347653682,1736023853702,-578.65055762,0.00018903,2]
[347653683,1736023853713,-500.0,0.00019178,2]
[347653684,1736023853723,-500.0,0.00019452,3]
[347653685,1736023853732,-500.0,0.00019452,3]
[347653686,1736023853742,-148.15186905,0.00019726,3]
[347653687,1736023853752,-500.0,0.00019726,3]
[347653688,1736023853762,-500.0,0.00019726,3]
[347653689,1736023853773,-500.0,0.00019726,3]
[347653690,1736023853783,-500.0,0.00019726,3]
[347653691,1736023853791,-500.0,0.00019726,3]
[347653692,1736023853802,-536.48,0.00019726,3]
[347653693,1736023853812,-500.0,0.00019726,3]
[347653694,1736023853821,-500.0,0.00019726,3]
[347653695,1736023853831,-270.30068023,0.00019726,3]
[347653696,1736023853840,-576.86,0.00019726,3]
[347653697,1736023853849,-500.0,0.00019726,3]
[347653698,1736023853859,-500.0,0.00019726,3]
[347653699,1736023853868,-500.0,0.00019726,3]
[347653700,1736023853879,-500.0,0.00019726,3]
[347653701,1736023853889,-500.0,0.00019726,3]
[347653702,1736023853898,-500.0,0.00019726,3]
[347653703,1736023853907,-375.6413799,0.00019726,3]
[347653704,1736023853917,-500.0,0.00019726,3]
[347653705,1736023853926,-500.0,0.00019726,3]
[347653706,1736023853935,-500.0,0.00019726,3]
[347653707,1736023853944,-500.0,0.00019726,3]
[347653708,1736023853954,-500.0,0.00019726,3]
[347653709,1736023853963,-500.0,0.00019726,3]
[347653710,1736023853973,-500.0,0.00019726,3]
[347653711,1736023853983,-508.04,0.00019726,3]
[347653712,1736023853993,-500.0,0.00019726,3]
[347653713,1736023854002,-500.0,0.00019726,3]
[347653714,1736023854011,-500.0,0.00019726,3]
[347653715,1736023854021,-500.0,0.00019726,3]
[347653716,1736023854030,-500.0,0.00019726,3]
[347653717,1736023854039,-500.0,0.00019726,3]
[347653718,1736023854049,-239.04128221,0.00019726,3]
[347653719,1736023854058,-500.0,0.00019726,3]
[347653720,1736023854068,-203.95968376,0.00019726,3]
[347653721,1736023854077,-500.0,0.00019726,3]
[347653722,1736023854086,-500.0,0.00019726,3]
[347653723,1736023854099,-388.77233549,0.00019726,3]
[347653724,1736023854108,-500.0,0.00019726,3]
[347653725,1736023854119,-500.0,0.00019726,3]
[347653726,1736023854130,-500.0,0.00019726,3]
[347653727,1736023854140,-504.00947227,0.00019726,3]
[347653728,1736023854150,-500.0,0.00019726,3]
[347653729,1736023854160,-508.30844112,0.00019726,3]
[347653730,1736023854172,-219.02351462,0.00019726,3]
[347653731,1736023854182,-500.0,0.00019726,3]
[347653732,1736023854192,-500.0,0.00019726,3]
[347653733,1736023854201,-500.0,0.00019726,3]
[347653734,1736023854210,-500.0,0.00019726,3]
[347653735,1736023854220,-500.0,0.00019726,3]
[347653736,1736023854230,-648.56,0.00019726,3]
[347653737,1736023854239,-500.0,0.00019726,3]
[347653738,1736023854248,-500.0,0.00019726,3]
[347653739,1736023854257,-1222.3,0.00019726,3]
[347653740,1736023854267,-585.19,0.00019726,3]
[347653741,1736023854277,-500.0,0.00019726,3]
[347653742,1736023854286,-500.0,0.00019726,3]
[347653743,1736023854296,-500.0,0.00019726,3]
[347653744,1736023854306,-739.14,0.00019726,3]
[347653745,1736023854315,-500.0,0.00019726,3]
[347653746,1736023854325,-503.95,0.00019726,3]
[347653747,1736023854334,-500.0,0.00019726,3]
[347653748,1736023854343,-513.84780953,0.00019726,3]
[347653749,1736023854353,-1396.31,0.00019726,3]
[347653750,1736023854362,-500.0,0.00019726,3]
[347653751,1736023854372,-710.46,0.00019726,3]
[347653752,1736023854381,-500.0,0.00019726,3]
[347653753,1736023854390,-500.0,0.00019726,3]
[347653754,1736023854399,-503.63099656,0.00019726,3]
[347653755,1736023854409,-500.0,0.00019726,3]
[347653756,1736023854418,-507.80918386,0.00019726,3]
[347653757,1736023854427,-500.0,0.00019726,3]
[347653758,1736023854437,-500.0,0.00019726,3]
[347653759,1736023854446,-500.0,0.00019726,3]
[347653760,1736023854455,-542.28048342,0.00019726,3]
[347653761,1736023854464,-500.0,0.00019726,3]
[347653762,1736023854474,-7.68880448,0.00019726,3]
[347653763,1736023854493,-492.31119552,0.00019726,3]
[347653764,1736023854503,-500.0,0.00019726,3]
[347653765,1736023854512,-500.0,0.00019726,3]
[347653766,1736023854521,-500.0,0.00019726,3]
[347653767,1736023854532,-500.0,0.00019726,3]
[347653768,1736023854541,-615.23,0.00019726,3]
[347653769,1736023854551,-297.7701512,0.00019726,3]
[347653770,1736023854560,-500.0,0.00019726,3]
[347653771,1736023854569,-808.12,0.00019726,3]
[347653772,1736023854579,-500.0,0.00019726,3]
[347653773,1736023854588,-500.0,0.00019726,3]
[347653774,1736023854598,-500.0,0.00019726,3]
[347653775,1736023854607,-82.31732474,0.00019726,3]
[347653776,1736023854618,-417.68267526,0.00019726,3]
[347653777,1736023854628,-503.03938597,0.00019726,3]
[347653778,1736023854637,-500.0,0.00019726,3]
[347653779,1736023854647,-228.58072777,0.00019726,3]
[347653780,1736023854658,-271.41927223,0.00019726,3]
[347653781,1736023854668,-500.0,0.00019726,3]
[347653782,1736023854677,-500.0,0.00019726,3]
[347653783,1736023854686,-501.31805084,0.00019726,3]
[347653784,1736023854695,-156.61619692,0.00019726,3]
[347653785,1736023854707,-343.38380308,0.00019726,3]
[347653786,1736023854716,-500.0,0.00019726,3]
[347653787,1736023854725,-480.01007759,0.00019726,3]
[347653788,1736023854734,-500.0,0.00019726,3]
[347653789,1736023854743,-1095.6,0.00019726,3]
[347653790,1736023854752,-500.0,0.00019726,3]
[347653791,1736023854761,-500.0,0.00019726,3]
[347653792,1736023854771,-500.0,0.00019726,3]
[347653793,1736023854782,-502.74821214,0.00019726,3]
[347653794,1736023854791,-1065.54,0.00019726,3]
[347653795,1736023854801,-500.0,0.00019726,3]
[347653796,1736023854809,-5.67074422,0.00019726,3]
[347653797,1736023854824,-1373.58925578,0.00019726,3]
[347653798,1736023854835,-433.11938366,0.00019726,2]
[347653799,1736023854846,-500.0,0.00019726,3]
[347653800,1736023854856,-406.59965588,0.00019726,3]
[347653801,1736023854865,-500.0,0.00019726,3]
[347653802,1736023854874,-500.0,0.00019726,3]
[347653803,1736023854884,-500.0,0.00019726,3]
[347653804,1736023854894,-420.39979277,0.00019726,3]
[347653805,1736023854907,-79.60020723,0.00019726,3]
[347653806,1736023854916,-500.0,0.00019726,3]
[347653807,1736023854926,-500.0,0.00019726,3]
[347653808,1736023854936,-188.0,0.00019726,2]
[347653809,1736023854945,-500.0,0.00019726,3]
[347653810,1736023854957,-500.0,0.00019726,3]
[347653811,1736023854966,-500.0,0.00019726,3]
[347653812,1736023854976,-500.0,0.00019726,3]
[347653813,1736023854985,-500.0,0.00019726,3]
[347653814,1736023854994,-530.79979277,0.00019726,3]
[347653815,1736023855008,-1214.66020723,0.00019726,3]
[347653816,1736023855017,-1021.38,0.00019726,3]
[347653817,1736023855028,-500.0,0.00019726,3]
[347653818,1736023855037,-500.0,0.00019726,3]
[347653819,1736023855048,-500.0,0.00019726,3]
[347653820,1736023855057,-638.4,0.00019726,3]
[347653821,1736023855066,-625.55979277,0.00019726,3]
[347653822,1736023855078,-87.05020723,0.00019726,3]
[347653823,1736023855091,-229.26468857,0.00019726,3]
[347653824,1736023855448,-204.166766,0.00017309,2]
[347653825,1736023855458,-500.0,0.00019178,2]
[347653826,1736023855467,-387.74557819,0.00019178,2]
[347653827,1736023855477,-289.47561207,0.00019178,2]
[347653828,1736023855496,-210.52438793,0.00019178,2]
[347653829,1736023855507,-605.30531143,0.00019726,3]
[347653830,1736023855516,-500.0,0.00019726,3]
[347653831,1736023855527,-500.0,0.00019726,3]
[347653832,1736023855535,-500.0,0.00019726,3]
[347653833,1736023855544,-500.0,0.00019726,3]
[347653834,1736023855554,-490.0183584,0.00019726,3]
[347653835,1736023855566,-9.9816416,0.00019726,3]
[347653836,1736023855576,-504.38980566,0.00019726,3]
[347653837,1736023855585,-1543.35,0.00019726,3]
[347653838,1736023855594,-500.0,0.00019726,3]
[347653839,1736023855604,-501.80206379,0.00019726,3]
[347653840,1736023855614,-500.0,0.00019726,3]
[347653841,1736023855625,-504.38,0.00019726,3]
[347653842,1736023855635,-500.0,0.00019726,3]
[347653843,1736023855644,-503.41745455,0.00019726,3]
[347653844,1736023855654,-944.93,0.00019726,3]
[347653845,1736023855664,-500.0,0.00019726,3]
[347653846,1736023855673,-500.0,0.00019726,3]
[347653847,1736023855682,-500.0,0.00019726,3]
[347653848,1736023855691,-500.0,0.00019726,3]
[347653849,1736023855700,-500.0,0.00019726,3]
[347653850,1736023855709,-1167.04,0.00019726,3]
[347653851,1736023855719,-500.0,0.00019726,3]
[347653852,1736023855728,-500.0,0.00019726,3]
[347653853,1736023855738,-500.0,0.00019726,3]
[347653854,1736023855747,-500.0,0.00019726,3]
[347653855,1736023855756,-500.0,0.00019726,3]
[347653856,1736023855765,-951.49,0.00019726,3]
[347653857,1736023855933,-500.0,0.00019726,3]
[347653858,1736023855943,-500.0,0.00019726,3]
[347653859,1736023855952,-500.0,0.00019726,3]
[347653860,1736023855962,-951.05,0.00019726,3]
[347653861,1736023855972,-500.0,0.00019726,3]
[347653862,1736023855981,-500.0,0.00019726,3]
[347653863,1736023855991,-500.0,0.00019726,3]
[347653864,1736023856000,-500.0,0.00019726,3]
[347653865,1736023856010,-500.0,0.00019726,3]
[347653866,1736023856019,-553.98655712,0.00019726,3]
[347653867,1736023856028,-500.0,0.00019726,3]
[347653868,1736023856038,-500.0,0.00019726,3]
[347653869,1736023856047,-1617.07,0.00019726,3]
[347653870,1736023856056,-500.0,0.00019726,3]
[347653871,1736023856066,-500.0,0.00019726,3]
[347653872,1736023856075,-500.0,0.00019726,3]
[347653873,1736023856085,-500.0,0.00019726,3]
[347653874,1736023856098,-500.0,0.00019726,3]
[347653875,1736023856108,-500.0,0.00019726,3]
[347653876,1736023856119,-500.0,0.00019726,3]
[347653877,1736023856128,-1026.73822188,0.00019726,3]
[347653878,1736023856142,-94.14177812,0.00019726,3]
[347653879,1736023856152,-932.14,0.00019726,3]
[347653880,1736023856161,-1794.5,0.00019726,3]
[347653881,1736023856173,-500.0,0.00019726,3]
[347653882,1736023856182,-500.0,0.00019726,3]
[347653883,1736023856192,-500.0,0.00019726,3]
[347653884,1736023856201,-502.23701622,0.00019726,3]
[347653885,1736023856211,-500.0,0.00019726,3]
[347653886,1736023856222,-500.0,0.00019726,3]
[347653887,1736023856232,-500.0,0.00019726,3]
[347653888,1736023856242,-500.0,0.00019726,3]
[347653889,1736023856252,-500.0,0.00019726,3]
[347653890,1736023856261,-500.0,0.00019726,3]
[347653891,1736023856271,-500.0,0.00019726,3]
[347653892,1736023856281,-500.0,0.00019726,3]
[347653893,1736023856290,-500.0,0.00019726,3]
[347653894,1736023856300,-500.0,0.00019726,3]
[347653895,1736023856309,-500.0,0.00019726,3]
[347653896,1736023856319,-501.6776997,0.00019726,3]
[347653897,1736023856329,-500.0,0.00019726,3]
[347653898,1736023856339,-1072.0,0.00019726,3]
[347653899,1736023856349,-500.0,0.00019726,3]
[347653900,1736023856360,-500.0,0.00019726,3]
[347653901,1736023856369,-500.0,0.00019726,3]
[347653902,1736023856379,-500.0,0.00019726,3]
[347653903,1736023856388,-500.0,0.00019726,3]
[347653904,1736023856397,-500.0,0.00019726,3]
[347653905,1736023856407,-951.73,0.00019726,3]
[347653906,1736023856416,-709.21,0.00019726,3]
[347653907,1736023856426,-760.37588628,0.00019726,3]
[347653908,1736023856467,-212.12411372,0.00019726,3]
[347653909,1736023856477,-603.32466342,0.00019726,3]
[347653910,1736023856488,-41.25533658,0.00019726,3]
[347653911,1736023856497,-500.0,0.00019726,3]
[347653912,1736023856507,-500.0,0.00019726,3]
[347653913,1736023856516,-1534.02,0.00019726,3]
[347653914,1736023856527,-500.0,0.00019726,3]
[347653915,1736023856536,-500.0,0.00019726,3]
[347653916,1736023856545,-500.0,0.00019726,3]
[347653917,1736023856556,-634.26002248,0.00019726,3]
[347653918,1736023856565,-500.0,0.00019726,3]
[347653919,1736023856574,-500.0,0.00019726,3]
[347653920,1736023856584,-503.44200271,0.00019726,3]
[347653921,1736023856593,-555.91,0.00019726,3]
[347653922,1736023856603,-500.0,0.00019726,3]
[347653923,1736023856612,-500.0,0.00019726,3]
[347653924,1736023856622,-500.0,0.00019726,3]
[347653925,1736023856631,-500.0,0.00019726,3]
[347653926,1736023856641,-500.0,0.00019726,3]
[347653927,1736023856651,-500.0,0.00019726,3]
[347653928,1736023856660,-501.76221106,0.00019726,3]
[347653929,1736023856670,-500.0,0.00019726,3]
[347653930,1736023856680,-500.0,0.00019726,3]
[347653931,1736023856689,-500.0,0.00019726,3]
[347653932,1736023856699,-500.0,0.00019726,3]
[347653933,1736023856708,-500.0,0.00019726,3]
[347653934,1736023856718,-500.0,0.00019726,3]
[347653935,1736023856727,-500.0,0.00019726,3]
[347653936,1736023856737,-2047.69,0.00019726,3]
[347653937,1736023856747,-500.0,0.00019726,3]
[347653938,1736023856756,-500.0,0.00019726,3]
[347653939,1736023856766,-500.0,0.00019726,3]
[347653940,1736023856775,-503.26527972,0.00019726,3]
[347653941,1736023856785,-500.0,0.00019726,3]
[347653942,1736023856794,-3289.98135845,0.00019726,3]
[347653943,1736023856806,-750.648911,0.00019726,3]
[347653944,1736023857196,-371.35201545,0.00019178,2]
[347653946,1736023890746,160.0,0.00023998,120]
[347653947,1736023936516,930.16,0.00024958,120]
[347653948,1736023936771,930.16,0.00024958,120]
[347653949,1736023937386,930.16,0.00024958,120]
[347653950,1736023937669,930.16,0.00024958,120]
[347653951,1736023937920,930.16,0.00024958,120]
[347653952,1736023938530,930.16,0.00024958,120]
[347653953,1736023938800,930.16,0.00024958,120]
[347653954,1736023939044,930.16,0.00024958,120]
[347653955,1736023939307,930.16,0.00024958,120]
[347653956,1736023939569,930.16,0.00024958,120]
[347653957,1736023939846,930.16,0.00024958,120]
[347653958,1736023940108,930.16,0.00024958,120]
[347653959,1736023940390,930.16,0.00024958,120]
[347653960,1736023940695,930.16,0.00024958,120]
[347653961,1736023940950,930.16,0.00024958,120]
[347653962,1736023941200,930.16,0.00024958,120]
[347653963,1736023941451,930.16,0.00024958,120]
[347653964,1736023941798,930.16,0.00024958,120]
[347653965,1736023942062,930.16,0.00024958,120]
[347653966,1736023942379,930.16,0.00024958,120]
[347653967,1736023942641,930.16,0.00024958,120]
[347653968,1736023942931,930.16,0.00024958,120]
[347653969,1736023943230,930.16,0.00024958,120]
[347653970,1736023943536,930.28678871,0.00024958,120]
[347653971,1736023950752,160.0,0.00024017,120]
[347653972,1736024000167,163.863953,0.0002411,120]
[347653973,1736024011297,160.0,0.00022891,120]
[347653975,1736024070753,160.0,0.00021926,120]
[347653982,1736024130779,160.0,0.00021762,120]
[347653983,1736024190758,160.0,0.00022893,120]
[347653985,1736024250723,160.0,0.00022496,120]
[347653986,1736024310752,160.0,0.00022394,120]
[347653987,1736024370861,160.0,0.00023505,120]
[347653992,1736024419309,371.92334,0.00025,120]
[347653993,1736024432038,160.0,0.00022527,120]
[347653994,1736024491291,160.0,0.00022965,120]
[347653995,1736024550720,160.0,0.00022556,120]
[347653996,1736024554291,1000.0,0.00025,120]
[347653997,1736024574517,165.992338,0.00013973,2]
[347653998,1736024610485,160.0,0.00023138,120]
[347653999,1736024670740,160.0,0.00024049,120]
[347654008,1736024731544,160.0,0.00022419,120]
[347654009,1736024791297,160.0,0.00022282,120]
[347654013,1736024850774,160.0,0.0002263,120]
[347654016,1736024910728,160.0,0.00022853,120]
[347654022,1736024922824,1778.0,0.00025,120]
[347654032,1736024970706,160.0,0.00023237,120]
[347654036,1736025030771,160.0,0.00021881,120]